bitfinex/quotes_SOLUSD_20250830
["timestamp","ask_amount","ask_price","bid_price","bid_amount"]
[1756542296484,0.06,205.24,205.21,0.14216157]
[1756542296681,0.06,205.24,205.22,39.07728194]
[1756542296887,0.06,205.24,205.23,5.31504215]
[1756542298184,0.06,205.24,205.23,10.18762413]
[1756542298981,0.06,205.24,205.23,5.56258198]
[1756542300295,0.06,205.24,205.23,10.18762413]
[1756542300692,1e-08,205.24,205.23,10.3297857]
[1756542300898,1e-08,205.25,205.23,10.18762413]
[1756542301083,1e-08,205.25,205.24,5.8322766]
[1756542301795,1e-08,205.25,205.24,10.70462117]
[1756542301997,1e-08,205.25,205.24,10.84678274]
[1756542302195,1e-08,205.27,205.25,0.14216157]
[1756542302399,1e-08,205.27,205.26,38.36718698]
[1756542302770,1e-08,205.27,205.26,37.88]
[1756542303994,1e-08,205.27,205.26,42.75186982]
[1756542304885,1e-08,205.27,205.26,43.9590568]
[1756542305671,5.30504216,205.27,205.26,4.87186982]
[1756542305872,5.30504216,205.27,205.26,42.75186982]
[1756542307195,5.30504216,205.27,205.24,4.87234457]
[1756542307388,4.62504215,205.25,205.2,4.87329434]
[1756542307583,0.68,205.24,205.22,37.88]
[1756542307778,0.68,205.23,205.22,37.88]
[1756542308295,0.68,205.23,205.22,4.87281941]
[1756542308797,5.30504215,205.23,205.22,4.87281941]
[1756542310826,4.62504215,205.23,205.18,4.87376937]
[1756542311003,26.00000001,205.27,205.18,4.87376937]
[1756542311004,4.62504215,205.19,205.18,4.87376937]
[1756542311301,5.30504215,205.19,205.18,4.87376937]
[1756542311482,5.30504215,205.19,205.18,42.73376937]
[1756542313001,4.62504215,205.19,205.18,42.73376937]
[1756542313393,4.62504215,205.2,205.18,42.73376937]
[1756542313699,5.30504215,205.2,205.18,42.73376937]
[1756542316489,4.62504215,205.19,205.16,12.18560345]
[1756542316686,4.62504215,205.21,205.17,38.58]
[1756542316917,4.62504215,205.22,205.17,42.48504215]
[1756542317218,4.62504215,205.21,205.18,0.72]
[1756542317415,4.62504215,205.21,205.19,38.58]
[1756542318014,0.68,205.23,205.19,38.58]
[1756542318214,4.62504215,205.21,205.2,4.87329434]
[1756542319110,5.30504215,205.21,205.2,4.87329434]
[1756542319616,4.62504215,205.21,205.2,4.87329434]
[1756542320191,5.30504215,205.21,205.19,37.86]
[1756542320519,5.30504215,205.2,205.19,37.86]
[1756542322619,5.30504215,205.2,205.17,0.03]
[1756542322817,1e-08,205.27,205.17,0.03]
[1756542322818,4.62504215,205.18,205.17,0.03]
[1756542323115,5.30504215,205.18,205.17,0.03]
[1756542323997,26.0,205.21,205.17,0.03]
[1756542324328,4.62504215,205.19,205.17,0.03]
[1756542324615,4.62504215,205.18,205.17,0.03]
[1756542330615,4.62504215,205.19,205.17,0.03]
[1756542331537,4.62504215,205.19,205.17,0.69]
[1756542332338,4.62504215,205.19,205.18,4.87376937]
[1756542332515,4.62504215,205.19,205.18,42.73376937]
[1756542332716,5.30504215,205.19,205.17,0.03]
[1756542332910,4.62504215,205.18,205.17,0.03]
[1756542333113,1e-08,205.27,205.18,14.25559401]
[1756542333338,1e-08,205.27,205.25,4.62504215]
[1756542333541,1e-08,205.27,205.21,0.14216157]
[1756542333542,1e-08,205.27,205.24,37.86]
[1756542333926,1e-08,205.27,205.24,38.52]
[1756542334319,0.68,205.26,205.24,37.86]
[1756542335237,5.30504216,205.27,205.24,37.86]
[1756542335744,1e-08,205.27,205.25,0.66]
[1756542336435,1e-08,205.27,205.26,4.87186982]
[1756542336738,26.0,205.25,205.18,4.87376937]
[1756542337037,4.62504215,205.22,205.2,37.86]
[1756542337237,5.30504215,205.22,205.2,37.86]
[1756542337423,4.62504215,205.22,205.2,37.86]
[1756542338020,4.62504215,205.23,205.2,43.39311812]
[1756542338519,4.62504215,205.21,205.2,43.39311812]
[1756542339142,4.62504215,205.22,205.2,43.39311812]
[1756542340350,5.30504215,205.21,205.18,1.953268]
[1756542340521,4.62504215,205.2,205.18,42.73373441]
[1756542340725,4.62504215,205.2,205.19,0.66]
[1756542341762,4.62504215,205.21,205.19,5.53353184]
[1756542341923,4.62504215,205.21,205.2,0.66]
[1756542342331,4.62504215,205.21,205.19,4.87353184]
[1756542342653,4.62504215,205.23,205.2,38.52]
[1756542343157,4.62504215,205.22,205.2,38.52]
[1756542343747,4.62504215,205.22,205.21,4.87305686]
[1756542344531,4.62504215,205.22,205.2,4.8732754]
[1756542344744,4.62504215,205.21,205.2,42.7332754]
[1756542348389,4.62504215,205.21,205.2,37.86]
[1756542348541,0.68,205.23,205.2,37.86]
[1756542348734,4.62504215,205.21,205.2,37.86]
[1756542349762,4.62504215,205.21,205.2,42.73329434]
[1756542354992,5.30504215,205.21,205.18,14.650226]
[1756542355281,0.68,205.21,205.2,0.03]
[1756542355847,0.68,205.23,205.2,0.03]
[1756542356246,3.96505013,205.23,205.2,0.03]
[1756542356441,4.62504215,205.21,205.2,0.03]
[1756542356874,5.30504215,205.21,205.2,0.03]
[1756542357049,0.68,205.21,205.2,0.03]
[1756542357244,4.62504215,205.21,205.2,0.03]
[1756542359489,9.9300843,205.21,205.2,0.03]
[1756542359690,30.62504215,205.18,205.17,0.03]
[1756542359892,33.9095609,205.18,205.17,0.03]
[1756542360299,34.5895609,205.18,205.17,0.03]
[1756542362761,34.5895609,205.18,205.14,0.03]
[1756542362762,39.46333027,205.18,205.14,0.03]
[1756542362961,4.62504215,205.16,205.14,0.03]
[1756542363161,33.9095609,205.16,205.14,0.03]
[1756542363404,34.6095609,205.16,205.14,0.03]
[1756542364367,31.32504215,205.16,205.14,0.03]
[1756542364881,34.60486117,205.16,205.14,0.03]
[1756542365083,3.27981902,205.16,205.14,0.03]
[1756542365277,3.27981902,205.18,205.15,0.69]
[1756542365584,23.93723752,205.26,205.15,7.26878715]
[1756542365585,4.62504215,205.2,205.15,7.26878715]
[1756542365891,4.62504215,205.2,205.17,4.87400692]
[1756542366091,4.62504215,205.2,205.18,0.66]
[1756542366792,4.62504215,205.19,205.18,0.66]
[1756542366985,4.62504215,205.19,205.15,0.69]
[1756542367193,4.62504215,205.17,205.15,0.03]
[1756542367396,4.62504215,205.19,205.16,0.66]
[1756542367603,4.62504215,205.18,205.17,0.66]
[1756542368398,4.62504215,205.18,205.17,5.53400692]
[1756542369713,30.62504215,205.21,205.17,5.53400692]
[1756542369924,0.7,205.24,205.18,0.66]
[1756542370215,4.62504215,205.21,205.18,0.66]
[1756542370418,4.62504215,205.21,205.19,0.66]
[1756542371098,4.62504215,205.21,205.17,4.87400692]
[1756542371297,4.62504215,205.2,205.18,0.66]
[1756542371503,4.62504215,205.2,205.19,4.87353184]
[1756542372092,4.62504215,205.2,205.17,4.87399295]
[1756542372286,4.62504215,205.18,205.16,4.87423671]
[1756542372487,4.62504215,205.18,205.16,5.53423671]
[1756542378012,5.32504215,205.17,205.15,0.03]
[1756542378210,4.62504215,205.16,205.15,0.03]
[1756542379685,4.62504215,205.16,205.15,0.69]
[1756542380695,4.62504215,205.16,205.15,5.56448208]
[1756542383830,0.7,205.19,205.15,5.56448208]
[1756542384128,4.62504215,205.17,205.15,5.56448208]
[1756542385424,4.62504215,205.17,205.15,0.03]
[1756542386423,4.62504215,205.16,205.15,4.90448208]
[1756542387233,18.92063616,205.16,205.15,0.03]
[1756542387400,22.19763283,205.16,205.15,0.03]
[1756542389498,17.57259068,205.16,205.15,0.03]
[1756542389703,22.19763283,205.16,205.15,0.03]
[1756542391208,3.27699667,205.16,205.15,0.03]
[1756542391525,0.06,205.18,205.16,4.87424449]
[1756542391732,0.06,205.18,205.17,0.67]
[1756542393113,0.06,205.18,205.17,10.16904907]
[1756542393636,0.06,205.18,205.17,5.54400692]
[1756542393940,0.06,205.18,205.17,10.16904892]
[1756542394512,0.06,205.18,205.17,5.54400692]
[1756542397720,4.68504215,205.18,205.17,4.87400692]
[1756542398622,4.68504215,205.18,205.17,5.54400692]
[1756542398815,0.06,205.18,205.17,5.54400692]
[1756542399314,0.06,205.18,205.17,10.16904907]
[1756542399724,0.06,205.18,205.17,5.54400692]
[1756542400247,0.06,205.18,205.17,10.16904892]
[1756542400445,0.06,205.18,205.17,5.54400692]
[1756542404746,0.06,205.18,205.17,10.16904907]
[1756542406557,4.68504215,205.18,205.16,4.87424409]
[1756542406762,5.33504215,205.18,205.16,4.87424409]
[1756542406942,4.68504215,205.18,205.16,4.87424409]
[1756542407457,0.06,205.18,205.16,4.87424409]
[1756542407961,0.06,205.18,205.16,5.54424409]
[1756542411057,0.06,205.18,205.16,4.87424409]
[1756542412870,0.06,205.18,205.16,5.54424409]
[1756542413072,0.06,205.18,205.17,5.29504215]
[1756542414447,0.06,205.18,205.17,5.355042]
[1756542414759,0.06,205.18,205.17,9.98008415]
[1756542414970,0.06,205.18,205.17,14.85409107]
[1756542415463,0.06,205.21,205.17,22.35406637]
[1756542415673,0.06,205.21,205.19,4.62504215]
[1756542416044,0.06,205.21,205.2,0.67]
[1756542416542,0.06,205.21,205.2,5.54329434]
[1756542419460,0.06,205.21,205.2,4.87329434]
[1756542419653,0.06,205.21,205.2,42.77329434]
[1756542420071,0.06,205.21,205.2,43.44329434]
[1756542420665,0.06,205.21,205.2,48.06833649]
[1756542421399,0.06,205.23,205.21,13.59559401]
[1756542421571,1e-08,205.23,205.22,4.76720372]
[1756542421770,1e-08,205.23,205.22,19.03279773]
[1756542422768,1e-08,205.23,205.22,25.85821814]
[1756542423278,1e-08,205.23,205.22,26.34550008]
[1756542423678,1e-08,205.23,205.22,52.34550008]
[1756542423889,1e-08,205.23,205.22,110.24550008]
[1756542424192,1e-08,205.23,205.22,47.23317599]
[1756542424488,1e-08,205.23,205.22,89.75821814]
[1756542424693,1e-08,205.23,205.22,89.77821814]
[1756542430877,1e-08,205.23,205.22,89.71821814]
[1756542432684,1e-08,205.23,205.22,51.85821814]
[1756542432900,1e-08,205.23,205.22,89.71821814]
[1756542433396,1e-08,205.23,205.22,169.31821814]
[1756542434601,1e-08,205.26,205.25,26.0]
[1756542434900,1e-08,205.26,205.25,148.22720372]
[1756542435496,1e-08,205.26,205.25,150.17961372]
[1756542437776,1e-08,205.26,205.25,117.1917209]
[1756542437983,1e-08,205.26,205.25,155.0917209]
[1756542438388,1e-08,205.26,205.25,150.46667875]
[1756542438792,1e-08,205.26,205.25,155.0917209]
[1756542439386,1e-08,205.26,205.25,75.4917209]
[1756542439589,1e-08,205.26,205.25,75.97893161]
[1756542441606,1e-08,205.28,205.26,13.73775558]
[1756542441810,0.06,205.29,205.26,13.73775558]
[1756542441811,1e-08,205.32,205.29,0.14216157]
[1756542441975,1e-08,205.34,205.32,13.59559401]
[1756542442178,1e-08,205.34,205.33,42.66720372]
[1756542442386,1e-08,205.34,205.33,47.53741265]
[1756542442601,1e-08,205.35,205.33,47.53741265]
[1756542442787,1e-08,205.35,205.34,4.62504215]
[1756542443197,1e-08,205.35,205.34,4.76720372]
[1756542443511,1e-08,205.35,205.34,6.71875672]
[1756542443986,1e-08,205.35,205.34,11.58872847]
[1756542444621,1e-08,205.36,205.35,0.14216157]
[1756542444921,1e-08,205.36,205.35,42.66720372]
[1756542445283,1e-08,205.36,205.35,57.30313472]
[1756542445817,1e-08,205.36,205.35,62.17286931]
[1756542447188,1e-08,205.36,205.35,62.01070774]
[1756542447515,0.70000001,205.36,205.35,47.37477674]
[1756542447701,0.70000001,205.36,205.35,49.32642374]
[1756542448008,0.70000001,205.36,205.35,44.70138159]
[1756542448226,0.70000001,205.36,205.35,49.32642374]
[1756542451916,1e-08,205.36,205.35,49.32642374]
[1756542452496,1e-08,205.37,205.35,63.73417932]
[1756542452698,1e-08,205.37,205.36,5.43720372]
[1756542452996,26.0,205.46,205.36,5.43720372]
[1756542452997,0.7,205.43,205.37,13.73775558]
[1756542453201,0.7,205.43,205.42,4.62504215]
[1756542453402,0.7,205.43,205.42,42.48504215]
[1756542453900,0.7,205.43,205.4,14.633076]
[1756542454100,0.7,205.42,205.41,42.72831215]
[1756542457206,0.7,205.42,205.41,9.4933543]
[1756542457409,0.7,205.42,205.41,42.72831215]
[1756542457806,0.7,205.42,205.41,4.86831215]
[1756542458007,0.7,205.42,205.41,42.70831215]
[1756542460944,0.7,205.42,205.41,47.33335515]
[1756542462226,0.76,205.42,205.41,47.33335515]
[1756542464006,0.76,205.42,205.41,9.49335515]
[1756542464214,0.76,205.42,205.41,47.31335515]
[1756542467431,0.76,205.42,205.41,9.49335515]
[1756542467727,5.38504215,205.42,205.39,4.86864564]
[1756542467926,5.38504215,205.42,205.39,42.68864564]
[1756542467927,5.32504215,205.41,205.39,42.68864564]
[1756542468132,0.7,205.4,205.39,42.68864564]
[1756542469427,5.32504215,205.4,205.38,9.49405035]
[1756542469612,4.62504215,205.4,205.39,37.82]
[1756542470208,0.06,205.42,205.39,37.82]
[1756542470548,0.06,205.42,205.4,0.67]
[1756542470748,0.06,205.42,205.41,37.84]
[1756542471510,0.06,205.42,205.41,48.03335515]
[1756542474537,0.06,205.42,205.41,48.70335515]
[1756542475642,0.06,205.42,205.41,48.03335515]
[1756542475827,0.06,205.42,205.41,48.70335515]
[1756542477922,0.06,205.42,205.41,48.01335515]
[1756542480376,5.38504215,205.42,205.41,48.01335515]
[1756542480693,5.38504215,205.42,205.41,4.86831215]
[1756542480864,5.38504215,205.42,205.41,42.68831215]
[1756542481745,5.38504215,205.42,205.41,4.86831215]
[1756542481969,5.38504215,205.42,205.41,37.82]
[1756542482151,0.76,205.42,205.41,37.82]
[1756542482358,5.38504215,205.42,205.41,37.82]
[1756542482577,5.38504215,205.42,205.41,42.68831215]
[1756542484554,5.38504215,205.42,205.41,37.82]
[1756542484758,5.38504215,205.42,205.41,42.68831215]
[1756542486757,8.66443403,205.42,205.41,42.68831215]
[1756542486958,8.66443403,205.42,205.41,37.82]
[1756542487265,7.96443403,205.42,205.41,37.82]
[1756542487442,3.33939188,205.42,205.41,37.82]
[1756542488351,0.06,205.42,205.41,37.82]
[1756542488957,0.06,205.42,205.41,42.68831215]
[1756542489266,0.06,205.42,205.41,43.36831215]
[1756542489660,0.06,205.42,205.41,58.00281615]
[1756542492679,0.72,205.42,205.41,14.634504]
[1756542492856,0.72,205.42,205.41,42.68831215]
[1756542493470,0.06,205.42,205.41,42.68831215]
[1756542494056,0.72,205.42,205.41,42.68831215]
[1756542494255,0.06,205.42,205.41,42.68831215]
[1756542494958,0.06,205.42,205.41,57.32281515]
[1756542495571,0.06,205.42,205.41,58.00281515]
[1756542497089,1e-08,205.45,205.43,0.14216157]
[1756542497262,1e-08,205.45,205.44,38.5]
[1756542497674,1e-08,205.45,205.44,38.64216157]
[1756542497985,1e-08,205.45,205.44,42.58472857]
[1756542498869,1e-08,205.45,205.44,47.45232981]
[1756542504766,1e-08,205.45,205.44,9.63232981]
[1756542504970,1e-08,205.45,205.44,47.45232981]
[1756542510605,1e-08,205.47,205.45,13.73775558]
[1756542510900,1e-08,205.47,205.46,37.94216157]
[1756542511071,1e-08,205.47,205.46,38.65216157]
[1756542511273,1e-08,205.47,205.46,53.28024257]
[1756542511483,1e-08,205.47,205.46,66.87583658]
[1756542511901,1e-08,205.47,205.46,14.77024257]
[1756542512083,0.71000001,205.47,205.46,52.428081]
[1756542512402,1e-08,205.47,205.46,58.00520842]
[1756542512979,0.71000001,205.47,205.46,14.628081]
[1756542513200,1e-08,205.47,205.46,37.8]
[1756542513872,0.71000001,205.47,205.46,41.070533]
[1756542514502,0.71000001,205.47,205.46,45.93766042]
[1756542515109,0.71000001,205.47,205.46,37.8]
[1756542515314,0.71000001,205.47,205.46,42.66712742]
[1756542515480,0.71000001,205.47,205.46,44.61791842]
[1756542515675,0.71000001,205.47,205.46,39.750791]
[1756542515907,0.71000001,205.47,205.46,37.8]
[1756542516983,0.71000001,205.47,205.41,0.03]
[1756542517186,0.71000001,205.47,205.42,37.8]
[1756542517390,0.71,205.46,205.42,39.751172]
[1756542517589,0.71,205.45,205.42,37.8]
[1756542517790,0.71,205.44,205.42,41.130534]
[1756542518111,0.71,205.43,205.42,37.8]
[1756542518285,0.71,205.43,205.41,37.83]
[1756542518605,0.71,205.42,205.41,37.83]
[1756542521395,0.71,205.42,205.41,42.69831215]
[1756542523008,3.26978771,205.45,205.41,42.69831215]
[1756542523191,0.71,205.44,205.41,42.69831215]
[1756542523631,0.71,205.46,205.42,0.71]
[1756542523796,0.71,205.46,205.43,37.8]
[1756542524206,1e-08,205.47,205.44,0.71]
[1756542524521,1e-08,205.47,205.45,37.8]
[1756542524702,1e-08,205.47,205.45,38.51]
[1756542525112,1e-08,205.47,205.46,4.86712742]
[1756542526817,0.71000001,205.47,205.45,37.8]
[1756542527009,0.71,205.46,205.45,37.8]
[1756542527823,0.71,205.46,205.43,37.8]
[1756542528129,0.71,205.45,205.43,37.8]
[1756542528420,0.71,205.44,205.43,37.8]
[1756542528826,0.71,205.46,205.43,42.66762985]
[1756542529030,0.71,205.45,205.43,42.66762985]
[1756542531441,1e-08,205.47,205.43,42.66762985]
[1756542531911,0.71,205.46,205.43,42.66762985]
[1756542532816,0.71,205.46,205.43,42.69762985]
[1756542533513,1e-08,205.47,205.43,42.69762985]
[1756542533711,1e-08,205.47,205.44,0.71]
[1756542533914,1e-08,205.47,205.45,37.8]
[1756542534328,0.71000001,205.47,205.45,37.8]
[1756542534525,0.71000001,205.47,205.45,42.66718366]
[1756542535033,1e-08,205.47,205.45,42.66718366]
[1756542535216,1e-08,205.47,205.46,0.71]
[1756542536158,1e-08,205.47,205.46,3.980297]
[1756542536321,1e-08,205.47,205.46,8.84742442]
[1756542543013,1e-08,205.47,205.46,8.13742442]
[1756542543218,0.71000001,205.47,205.46,37.8]
[1756542543438,1e-08,205.47,205.46,37.8]
[1756542544419,1e-08,205.47,205.46,44.61801342]
[1756542545342,1e-08,205.47,205.46,6.81801342]
[1756542545644,1e-08,205.47,205.46,44.61801342]
[1756542545849,1e-08,205.47,205.46,45.29801342]
[1756542547732,1e-08,205.47,205.46,44.61801342]
[1756542548041,1e-08,205.47,205.46,7.49801342]
[1756542548223,1e-08,205.47,205.46,45.29801342]
[1756542551164,40.30559402,205.47,205.46,1.950886]
[1756542551463,40.30559402,205.47,205.45,0.03]
[1756542551464,43.58118838,205.47,205.45,0.03]
[1756542551641,3.27559436,205.46,205.45,0.03]
[1756542552237,3.98559436,205.46,205.45,0.03]
[1756542554656,8.85272178,205.46,205.45,0.03]
[1756542555975,22.44831579,205.46,205.45,0.03]
[1756542557849,17.58118837,205.46,205.45,0.03]
[1756542560770,43.58118837,205.46,205.45,0.03]
[1756542561357,29.98559436,205.46,205.45,0.03]
[1756542569678,29.33559436,205.46,205.45,0.03]
[1756542569882,29.33559436,205.46,205.45,0.71]
[1756542569883,3.33559436,205.46,205.45,0.71]
[1756542570257,0.06,205.46,205.45,0.71]
[1756542570991,0.06,205.46,205.45,0.03]
[1756542571869,0.06,205.46,205.45,0.72]
[1756542572481,0.06,205.46,205.45,0.03]
[1756542573497,0.06,205.5,205.48,26.0]
[1756542573982,1e-08,205.5,205.48,26.0]
[1756542574182,1e-08,205.5,205.49,4.092795]
[1756542574987,1e-08,205.5,205.49,8.95921185]
[1756542576699,1e-08,205.5,205.49,47.05921185]
[1756542577085,1e-08,205.5,205.49,8.95921185]
[1756542580692,1e-08,205.5,205.49,4.86641685]
[1756542586091,1e-08,205.5,205.49,8.12934285]
[1756542586598,1e-08,205.5,205.49,4.86641685]
[1756542588383,1e-08,205.5,205.49,8.12934285]
[1756542588580,0.67000001,205.5,205.46,4.86712742]
[1756542588772,1e-08,205.5,205.46,4.86712742]
[1756542588975,0.67,205.49,205.46,4.86712742]
[1756542589175,0.67,205.48,205.46,4.86712742]
[1756542589390,0.67,205.47,205.46,4.86712742]
[1756542590787,0.67,205.47,205.45,0.03]
[1756542602630,39.59559401,205.46,205.45,0.03]
[1756542602812,39.59559401,205.46,205.43,0.03]
[1756542602813,0.14216157,205.45,205.43,0.03]
[1756542603014,13.59559401,205.43,205.42,0.03]
[1756542603188,14.25559401,205.43,205.41,0.03]
[1756542603789,0.66,205.43,205.41,0.03]
[1756542605010,3.92202121,205.43,205.41,0.03]
[1756542605213,0.66,205.43,205.41,0.03]
[1756542605414,3.92144773,205.43,205.41,0.03]
[1756542606716,0.66,205.43,205.41,0.03]
[1756542607033,0.66,205.44,205.41,0.03]
[1756542607391,26.0,205.44,205.41,0.03]
[1756542607905,0.06,205.47,205.42,0.1]
[1756542608422,0.06,205.47,205.43,4.86783819]
[1756542608729,0.06,205.47,205.44,0.1]
[1756542609434,0.06,205.47,205.43,4.86783819]
[1756542609919,0.06,205.47,205.43,4.96783819]
[1756542611027,0.06,205.47,205.43,4.86783819]
[1756542611255,0.66,205.46,205.43,4.86783819]
[1756542611408,0.06,205.47,205.43,4.86783819]
[1756542611724,38.06,205.52,205.43,4.86783819]
[1756542611725,1e-08,205.53,205.51,0.14216157]
[1756542611924,0.66,205.62,205.52,38.32]
[1756542612115,0.66,205.62,205.53,0.04]
[1756542612436,0.66,205.57,205.53,2.54501]
[1756542612930,0.66,205.6,205.53,2.54501]
[1756542613105,0.66,205.62,205.54,4.90523304]
[1756542613813,3.92359569,205.61,205.54,4.90523304]
[1756542614126,0.66,205.61,205.54,43.28523304]
[1756542614534,0.66,205.6,205.54,43.24523304]
[1756542614826,0.66,205.6,205.54,4.86523304]
[1756542615413,0.66,205.57,205.54,4.86523304]
[1756542615936,26.0,205.6,205.54,4.86523304]
[1756542616141,0.72,205.55,205.54,4.86523304]
[1756542616434,0.72,205.55,205.52,4.8657065]
[1756542616627,0.06,205.55,205.52,4.8657065]
[1756542617130,0.72,205.55,205.52,4.8657065]
[1756542618239,0.72,205.55,205.49,4.86641685]
[1756542618443,0.72,205.55,205.5,38.34]
[1756542618656,0.06,205.55,205.5,38.34]
[1756542618944,0.72,205.55,205.5,38.34]
[1756542620440,0.72,205.55,205.51,4.86594326]
[1756542620849,0.66,205.54,205.51,4.86594326]
[1756542623040,0.66,205.53,205.5,0.03]
[1756542623433,0.06,205.55,205.5,0.03]
[1756542623642,0.72,205.55,205.5,0.03]
[1756542624644,0.66,205.54,205.5,0.03]
[1756542624818,0.72,205.55,205.5,0.03]
[1756542626044,0.06,205.55,205.5,0.03]
[1756542626257,0.66,205.54,205.5,0.03]
[1756542627225,0.66,205.53,205.5,0.03]
[1756542629155,0.66,205.53,205.5,4.89618004]
[1756542629447,0.06,205.55,205.5,4.89618004]
[1756542629629,0.66,205.54,205.5,4.89618004]
[1756542629830,0.66,205.53,205.5,4.89618004]
[1756542630431,0.06,205.55,205.5,4.89618004]
[1756542630432,0.66,205.52,205.5,4.89618004]
[1756542630958,0.7,205.53,205.5,4.89618004]
[1756542631172,0.7,205.52,205.5,43.15618004]
[1756542632136,0.06,205.55,205.5,43.15618004]
[1756542632336,0.7,205.54,205.5,43.15618004]
[1756542632534,0.7,205.53,205.5,43.15618004]
[1756542632758,0.7,205.53,205.5,0.03]
[1756542632960,0.7,205.53,205.51,38.26]
[1756542633256,0.76,205.55,205.51,38.26]
[1756542633458,0.7,205.54,205.51,38.26]
[1756542633771,0.06,205.55,205.51,38.26]
[1756542633965,0.7,205.53,205.51,38.26]
[1756542634540,0.7,205.53,205.52,4.8657065]
[1756542634934,0.06,205.58,205.52,4.8657065]
[1756542635132,0.06,205.58,205.53,0.18216157]
[1756542635338,0.06,205.58,205.54,0.04]
[1756542635532,0.06,205.58,205.55,38.34]
[1756542635754,0.06,205.58,205.55,40.329746]
[1756542636765,0.06,205.58,205.56,4.86475968]
[1756542637259,0.06,205.58,205.56,4.90475968]
[1756542637864,0.06,205.58,205.57,0.04]
[1756542638651,0.06,205.58,205.56,6.81440968]
[1756542638967,0.06,205.58,205.56,6.85440968]
[1756542641661,1e-08,205.58,205.56,6.85440968]
[1756542642056,1e-08,205.58,205.57,0.04]
[1756542642535,1e-08,205.58,205.56,6.81440968]
[1756542642739,1e-08,205.58,205.56,6.85440968]
[1756542643166,1e-08,205.58,205.56,4.90475968]
[1756542643573,1e-08,205.58,205.57,6.81407803]
[1756542644574,1e-08,205.58,205.57,6.85407803]
[1756542644938,1e-08,205.58,205.57,6.81407803]
[1756542645757,1e-08,205.58,205.57,6.9962396]
[1756542646565,1e-08,205.58,205.57,6.9562396]
[1756542648273,1e-08,205.58,205.57,45.01407803]
[1756542651048,1e-08,205.58,205.57,43.04452303]
[1756542651263,0.70000001,205.58,205.57,43.04452303]
[1756542652081,0.70000001,205.58,205.57,43.02452303]
[1756542655882,0.70000001,205.58,205.55,3.258922]
[1756542656090,0.7,205.57,205.51,42.98594326]
[1756542656261,0.7,205.56,205.51,55.15080141]
[1756542656462,1e-08,205.58,205.57,0.03]
[1756542656962,0.70000001,205.58,205.57,0.03]
[1756542657375,0.70000001,205.58,205.57,4.89452303]
[1756542657978,0.70000001,205.58,205.57,0.03]
[1756542661000,1e-08,205.58,205.57,0.03]
[1756542661168,1e-08,205.58,205.57,0.73]
[1756542661361,1e-08,205.58,205.57,4.058586]
[1756542661564,1e-08,205.58,205.57,8.92310903]
[1756542662074,1e-08,205.58,205.57,5.59452303]
[1756542662280,1e-08,205.58,205.57,7.54407803]
[1756542662489,1e-08,205.58,205.57,6.84407803]
[1756542662690,1e-08,205.58,205.57,43.21452303]
[1756542662691,0.68000001,205.58,205.57,43.21452303]
[1756542663286,0.68000001,205.58,205.57,4.89452303]
[1756542663487,0.68000001,205.58,205.57,38.37]
[1756542663802,0.68000001,205.58,205.57,0.03]
[1756542666302,1e-08,205.58,205.57,0.03]
[1756542668122,1e-08,205.58,205.57,0.73]
[1756542670112,1e-08,205.58,205.57,5.59452303]
[1756542670416,0.06,205.63,205.58,13.73775558]
[1756542670712,0.06,205.63,205.59,38.32]
[1756542671111,0.06,205.63,205.6,0.7]
[1756542671500,0.06,205.63,205.61,4.86357667]
[1756542671800,0.06,205.63,205.62,38.34]
[1756542673203,0.06,205.63,205.62,43.20334014]
[1756542677113,1e-08,205.63,205.62,43.90334014]
[1756542677416,1e-08,205.63,205.62,45.85242014]